bitfinex/quotes_BTCUSD_20250105
["timestamp","ask_amount","ask_price","bid_price","bid_amount"]
[1736061143639,0.18274288,98433.0,98431.0,0.22441821]
[1736061144395,0.18274288,98433.0,98431.0,0.22341821]
[1736061144948,0.18274288,98433.0,98431.0,0.22141821]
[1736061145084,0.18274288,98433.0,98431.0,0.22341821]
[1736061145831,0.18274288,98433.0,98431.0,0.22441821]
[1736061146030,0.22844461,98433.0,98431.0,0.22441821]
[1736061148346,0.18273531,98433.0,98431.0,0.22441821]
[1736061150231,0.18273531,98432.0,98431.0,0.22441821]
[1736061151561,0.18273531,98432.0,98431.0,0.22241821]
[1736061151920,0.22844461,98435.0,98431.0,0.42660621]
[1736061152360,0.22844461,98435.0,98431.0,0.42760621]
[1736061152555,0.22844461,98434.0,98431.0,0.42760621]
[1736061152758,0.22844461,98434.0,98431.0,0.42660621]
[1736061153190,0.22844461,98434.0,98431.0,0.42460621]
[1736061153383,0.22844461,98434.0,98431.0,0.42560621]
[1736061154718,0.22844461,98434.0,98431.0,0.42460621]
[1736061154924,0.22844461,98434.0,98431.0,0.42560621]
[1736061155850,0.22844461,98434.0,98431.0,0.42460621]
[1736061156083,0.18273182,98432.0,98431.0,0.22441821]
[1736061156426,0.18273182,98432.0,98431.0,0.22241821]
[1736061156608,0.18273182,98432.0,98431.0,0.22141821]
[1736061156747,0.18273182,98432.0,98431.0,0.22241821]
[1736061156969,0.22844461,98432.0,98431.0,0.22241821]
[1736061158126,0.22844461,98435.0,98431.0,0.22141821]
[1736061158341,0.22844461,98435.0,98431.0,0.42760521]
[1736061158538,0.22844461,98435.0,98431.0,0.42560521]
[1736061159089,0.22844461,98435.0,98431.0,0.42460521]
[1736061159320,0.18273321,98432.0,98431.0,0.42560521]
[1736061159503,0.18273321,98432.0,98431.0,0.42760521]
[1736061159663,0.18273321,98432.0,98431.0,0.42660521]
[1736061159856,0.18273321,98432.0,98431.0,0.42860521]
[1736061160242,0.18273321,98432.0,98431.0,0.42960521]
[1736061161258,0.18273321,98432.0,98431.0,0.42460521]
[1736061161667,0.18273321,98432.0,98431.0,0.42760521]
[1736061162999,0.18273321,98433.0,98431.0,0.42760521]
[1736061164165,0.18273321,98433.0,98431.0,0.42560521]
[1736061164603,0.18273321,98433.0,98431.0,0.42760521]
[1736061164801,0.18273321,98433.0,98431.0,0.42660521]
[1736061165176,0.18273321,98433.0,98431.0,0.42760521]
[1736061166570,0.13705493,98432.0,98431.0,0.42760521]
[1736061167846,0.13705493,98432.0,98431.0,0.42560521]
[1736061168050,0.13705493,98432.0,98431.0,0.42660521]
[1736061168462,0.13705493,98432.0,98431.0,0.42760521]
[1736061171366,0.18273321,98432.0,98431.0,0.42760521]
[1736061171880,0.18273321,98432.0,98431.0,0.92760521]
[1736061172322,0.22844461,98434.0,98431.0,0.92760521]
[1736061172524,0.56575093,98433.0,98431.0,0.92760521]
[1736061172747,0.56575093,98433.0,98431.0,0.52123021]
[1736061173484,0.56575093,98433.0,98431.0,0.52023021]
[1736061173691,0.56575093,98433.0,98431.0,0.52123021]
[1736061173895,0.33730632,98432.0,98431.0,0.52123021]
[1736061174338,0.33730632,98432.0,98431.0,0.51923021]
[1736061174765,0.33730632,98432.0,98431.0,0.02123021]
[1736061174969,0.33730632,98432.0,98431.0,0.01823021]
[1736061175170,0.33730632,98432.0,98431.0,0.01923021]
[1736061175604,0.33730632,98432.0,98431.0,0.01823021]
[1736061176614,0.33730632,98432.0,98431.0,0.000171]
[1736061182308,0.33724132,98432.0,98431.0,0.000171]
[1736061190964,0.33732672,98432.0,98431.0,0.000171]
[1736061195727,0.33832672,98432.0,98431.0,0.000171]
[1736061196161,0.33732672,98432.0,98431.0,0.000171]
[1736061198575,0.33832672,98432.0,98431.0,0.000171]
[1736061201723,0.33732672,98432.0,98431.0,0.000171]
[1736061204365,0.41942672,98432.0,98431.0,0.000171]
[1736061204562,0.42042672,98432.0,98431.0,0.000171]
[1736061205292,0.42242672,98432.0,98431.0,0.000171]
[1736061207400,0.42142672,98432.0,98431.0,0.000171]
[1736061207605,0.42242672,98432.0,98431.0,0.000171]
[1736061207838,0.42042672,98432.0,98431.0,0.000171]
[1736061208316,0.45417422,98432.0,98431.0,0.000171]
[1736061208492,0.45317422,98432.0,98431.0,0.000171]
[1736061208702,0.45517422,98432.0,98431.0,0.000171]
[1736061208898,0.45617422,98432.0,98431.0,0.000171]
[1736061209456,0.42442672,98432.0,98431.0,0.000171]
[1736061210003,0.42442672,98432.0,98428.0,0.000171]
[1736061210225,0.203188,98431.0,98428.0,0.000171]
[1736061211862,0.204188,98431.0,98428.0,0.000171]
[1736061212062,0.205188,98431.0,98428.0,0.000171]
[1736061212644,0.27409474,98429.0,98428.0,0.000171]
[1736061214348,0.33724132,98429.0,98428.0,0.000171]
[1736061216195,0.33924132,98429.0,98428.0,0.000171]
[1736061217301,0.34024132,98429.0,98428.0,0.000171]
[1736061219440,0.61433606,98429.0,98428.0,0.000171]
[1736061220651,0.34024132,98429.0,98428.0,0.000171]
[1736061263638,0.37200624,98429.0,98428.0,0.000171]
[1736061264381,0.68007991,98429.0,98428.0,0.000171]
[1736061265892,0.37200624,98429.0,98428.0,0.000171]
[1736061266198,0.37200624,98429.0,98427.0,7.88e-05]
[1736061266354,0.23495892,98428.0,98427.0,7.88e-05]
[1736061266759,0.23458723,98428.0,98427.0,7.88e-05]
[1736061267416,0.20282231,98428.0,98427.0,7.88e-05]
[1736061268405,0.20382231,98428.0,98427.0,7.88e-05]
[1736061268816,0.54106363,98428.0,98427.0,7.88e-05]
[1736061269104,0.54306363,98428.0,98427.0,7.88e-05]
[1736061272612,0.54306363,98428.0,98427.0,0.0002496]
[1736061273426,0.57481925,98428.0,98427.0,0.0002496]
[1736061273629,0.54306363,98428.0,98427.0,0.0002496]
[1736061273809,0.57481857,98428.0,98427.0,0.0002496]
[1736061277846,0.54306363,98428.0,98427.0,0.0002496]
[1736061278057,0.57481548,98428.0,98427.0,0.0002496]
[1736061278520,0.54306363,98428.0,98427.0,0.0002496]
[1736061278733,0.57481545,98428.0,98427.0,0.0002496]
[1736061281339,0.88351679,98428.0,98427.0,0.0002496]
[1736061281847,0.88351679,98428.0,98417.0,0.0001708]
[1736061282026,0.03175182,98427.0,98417.0,0.0001708]
[1736061282200,0.203198,98426.0,98417.0,0.0001708]
[1736061283200,0.203198,98426.0,98417.0,0.0011708]
[1736061283437,0.203198,98426.0,98417.0,0.0001708]
[1736061283839,0.203198,98426.0,98417.0,0.0011708]
[1736061284042,0.27432325,98420.0,98417.0,0.0011708]
[1736061284940,0.33724132,98419.0,98417.0,0.0011708]
[1736061285677,0.33724132,98419.0,98417.0,0.0001708]
[1736061285967,0.33724132,98419.0,98417.0,0.0011708]
[1736061286182,0.33724132,98418.0,98417.0,0.0011708]
[1736061286591,0.33724132,98418.0,98417.0,0.0031708]
[1736061287163,0.33724132,98418.0,98417.0,0.0041708]
[1736061287365,0.33724132,98418.0,98417.0,0.0011708]
[1736061287598,0.33724132,98418.0,98417.0,0.0021708]
[1736061288119,0.33724132,98418.0,98417.0,0.0031708]
[1736061289188,0.33724132,98418.0,98417.0,0.0021708]
[1736061289390,0.33724132,98418.0,98417.0,0.0001708]
[1736061289792,0.33824132,98418.0,98417.0,0.0001708]
[1736061292013,0.33724132,98418.0,98417.0,0.0001708]
[1736061292923,0.33824132,98418.0,98417.0,0.0001708]
[1736061295102,0.33724132,98418.0,98417.0,0.0001708]
[1736061295447,0.33824132,98418.0,98417.0,0.0001708]
[1736061301763,0.33724132,98418.0,98417.0,0.0001708]
[1736061301992,0.33824132,98418.0,98417.0,0.0001708]
[1736061304447,0.33724132,98418.0,98417.0,0.0001708]
[1736061304856,0.33824132,98418.0,98417.0,0.0001708]
[1736061307749,0.33724132,98418.0,98417.0,0.0001708]
[1736061308381,0.33824132,98418.0,98417.0,0.0001708]
[1736061310727,0.61256457,98418.0,98417.0,0.0001708]
[1736061311388,0.61156457,98418.0,98417.0,0.0001708]
[1736061311933,0.61256457,98418.0,98417.0,0.0001708]
[1736061319202,0.61356457,98418.0,98417.0,0.0001708]
[1736061319430,0.33824132,98418.0,98417.0,0.0001708]
[1736061319858,0.34024132,98418.0,98417.0,0.0001708]
[1736061320572,0.33924132,98418.0,98417.0,0.0001708]
[1736061320782,0.34024132,98418.0,98417.0,0.0001708]
[1736061321454,0.33824132,98418.0,98417.0,0.0001708]
[1736061321654,0.34024132,98418.0,98417.0,0.0001708]
[1736061322086,0.33924132,98418.0,98417.0,0.0001708]
[1736061322404,0.34024132,98418.0,98417.0,0.0001708]
[1736061322561,0.34224132,98418.0,98417.0,0.0001708]
[1736061322985,0.61660009,98418.0,98417.0,0.0001708]
[1736061324747,0.61260009,98418.0,98417.0,0.0001708]
[1736061325167,0.61460009,98418.0,98417.0,0.0001708]
[1736061325635,0.61360009,98418.0,98417.0,0.0001708]
[1736061325938,0.61460009,98418.0,98417.0,0.0001708]
[1736061327096,0.61360009,98418.0,98417.0,0.0001708]
[1736061328302,0.61160009,98418.0,98417.0,0.0001708]
[1736061328534,0.61260009,98418.0,98417.0,0.0001708]
[1736061328746,0.61460009,98418.0,98417.0,0.0001708]
[1736061328882,0.61160009,98418.0,98417.0,0.0001708]
[1736061329332,0.61260009,98418.0,98417.0,0.0001708]
[1736061330261,0.33824132,98418.0,98417.0,0.0001708]
[1736061331367,0.61260009,98418.0,98417.0,0.0001708]
[1736061332449,0.33824132,98418.0,98417.0,0.0001708]
[1736061333661,0.61260009,98418.0,98417.0,0.0001708]
[1736061334974,0.33824132,98418.0,98417.0,0.0001708]
[1736061336503,0.33724132,98418.0,98417.0,0.0001708]
[1736061336929,0.33824132,98418.0,98417.0,0.0001708]
[1736061338395,0.33724132,98418.0,98417.0,0.0001708]
[1736061338896,0.33824132,98418.0,98417.0,0.0001708]
[1736061339098,0.33724132,98418.0,98417.0,0.0001708]
[1736061339504,0.33824132,98418.0,98417.0,0.0001708]
[1736061341609,0.61260009,98418.0,98417.0,0.0001708]
[1736061342874,0.33824132,98418.0,98417.0,0.0001708]
[1736061343928,0.61260009,98418.0,98417.0,0.0001708]
[1736061344747,0.61160009,98418.0,98417.0,0.0001708]
[1736061345084,0.61260009,98418.0,98417.0,0.0001708]
[1736061348544,0.61160009,98418.0,98417.0,0.0001708]
[1736061348720,0.61260009,98418.0,98417.0,0.0001708]
[1736061349549,0.61360009,98418.0,98417.0,0.0001708]
[1736061349980,0.61360009,98418.0,98417.0,0.0771708]
[1736061350185,0.61360009,98418.0,98417.0,0.09869268]
[1736061351336,0.33924132,98418.0,98417.0,0.09869268]
[1736061352140,0.33724132,98418.0,98417.0,0.09869268]
[1736061352344,0.52108996,98418.0,98417.0,0.09869268]
[1736061352777,0.52108996,98418.0,98417.0,0.0771708]
[1736061353409,0.33824132,98418.0,98417.0,0.0771708]
[1736061354402,0.33824132,98418.0,98417.0,0.0781708]
[1736061354860,0.33724132,98418.0,98417.0,0.0781708]
[1736061355107,0.33724132,98418.0,98417.0,0.18315712]
[1736061355352,0.33724132,98418.0,98417.0,0.18215712]
[1736061355552,0.33724132,98418.0,98417.0,0.09969058]
[1736061355786,0.33724132,98418.0,98417.0,0.02569058]
[1736061356206,0.18284864,98419.0,98417.0,0.02569058]
[1736061357220,0.18284864,98419.0,98417.0,0.02469058]
[1736061357407,0.22859255,98418.0,98417.0,0.02469058]
[1736061357642,0.22859255,98418.0,98417.0,0.0041708]
[1736061357845,0.22859255,98418.0,98417.0,0.0011708]
[1736061358053,0.22859255,98418.0,98417.0,0.0041708]
[1736061358472,0.33724132,98418.0,98417.0,0.0041708]
[1736061358671,0.33724132,98418.0,98417.0,0.0071708]
[1736061358954,0.33724132,98418.0,98417.0,0.0001708]
[1736061359173,0.33724132,98418.0,98417.0,0.0011708]
[1736061359337,0.33724132,98418.0,98417.0,0.0021708]
[1736061360338,0.33724132,98418.0,98417.0,0.0011708]
[1736061361159,0.33724132,98418.0,98417.0,0.0001708]
[1736061361511,0.33724132,98418.0,98417.0,0.0011708]
[1736061362679,0.33724132,98418.0,98417.0,0.0001708]
[1736061364070,0.33724132,98418.0,98417.0,0.0011708]
[1736061364473,0.33724132,98418.0,98417.0,0.0001708]
[1736061371037,0.33824132,98418.0,98417.0,0.0001708]
[1736061371451,0.33724132,98418.0,98417.0,0.0001708]
[1736061371909,0.33924132,98418.0,98417.0,0.0001708]
[1736061373176,0.34024132,98418.0,98417.0,0.0001708]
[1736061373554,0.34124132,98418.0,98417.0,0.0001708]
[1736061373889,0.33824132,98418.0,98417.0,0.0001708]
[1736061374095,0.34024132,98418.0,98417.0,0.0001708]
[1736061374342,0.33924132,98418.0,98417.0,0.0001708]
[1736061374878,0.34024132,98418.0,98417.0,0.0001708]
[1736061374988,0.33824132,98418.0,98417.0,0.0001708]
[1736061375461,0.34024132,98418.0,98417.0,0.0001708]
[1736061376640,0.33724132,98418.0,98417.0,0.0001708]
[1736061377057,0.33924132,98418.0,98417.0,0.0001708]
[1736061377261,0.33824132,98418.0,98417.0,0.0001708]
[1736061377670,0.34024132,98418.0,98417.0,0.0001708]
[1736061377863,0.33924132,98418.0,98417.0,0.0001708]
[1736061378105,0.34024132,98418.0,98417.0,0.0001708]
[1736061378575,0.33724132,98418.0,98417.0,0.0001708]
[1736061379890,0.33924132,98418.0,98417.0,0.0001708]
[1736061380236,0.34024132,98418.0,98417.0,0.0001708]
[1736061380440,0.33824132,98418.0,98417.0,0.0001708]
[1736061381047,0.33924132,98418.0,98417.0,0.0001708]
[1736061381877,0.33724132,98418.0,98417.0,0.0001708]
[1736061383218,0.33924132,98418.0,98417.0,0.0001708]
[1736061383779,0.34024132,98418.0,98417.0,0.0001708]
[1736061383988,0.33824132,98418.0,98417.0,0.0001708]
[1736061384199,0.33924132,98418.0,98417.0,0.0001708]
[1736061384473,0.34124132,98418.0,98417.0,0.0001708]
[1736061384673,0.33924132,98418.0,98417.0,0.0001708]
[1736061384956,0.34024132,98418.0,98417.0,0.0001708]
[1736061386175,0.33724132,98418.0,98417.0,0.0001708]
[1736061386577,0.33924132,98418.0,98417.0,0.0001708]
[1736061387254,0.33724132,98418.0,98417.0,0.0001708]
[1736061387458,0.33824132,98418.0,98417.0,0.0001708]
[1736061387636,0.33924132,98418.0,98417.0,0.0001708]
[1736061388071,0.34024132,98418.0,98417.0,0.0001708]
[1736061389295,0.33724132,98418.0,98417.0,0.0001708]
[1736061389711,0.33824132,98418.0,98417.0,0.0001708]
[1736061394624,0.33824132,98418.0,98417.0,0.02168986]
[1736061394828,0.33824132,98418.0,98417.0,0.0001708]
[1736061395338,0.33824132,98418.0,98417.0,0.02168986]
[1736061426741,0.33824132,98418.0,98417.0,0.0001708]
[1736061428289,0.33824132,98418.0,98417.0,0.02169702]
[1736061430223,0.33824132,98418.0,98417.0,0.10449702]
[1736061431050,0.33724132,98418.0,98417.0,0.10449702]
[1736061431386,0.33724132,98418.0,98417.0,0.10549702]
[1736061431536,0.56581819,98418.0,98417.0,0.10549702]
[1736061432431,0.22857687,98419.0,98417.0,0.10549702]
[1736061432684,0.22857687,98419.0,98418.0,0.203214]
[1736061433137,0.22857687,98419.0,98418.0,0.22473906]
[1736061433646,0.22857687,98420.0,98418.0,0.22473906]
[1736061434961,0.33724132,98419.0,98418.0,0.22473906]
[1736061436284,0.33724132,98419.0,98418.0,0.22500138]
[1736061436852,0.33824132,98419.0,98418.0,0.22500138]
[1736061440725,0.56681819,98419.0,98418.0,0.22500138]
[1736061441914,0.33824132,98419.0,98418.0,0.22500138]
[1736061442826,0.33724132,98419.0,98418.0,0.22600138]
[1736061443238,0.33724132,98419.0,98418.0,0.22800138]
[1736061444311,0.33724132,98419.0,98418.0,0.22700138]
[1736061444517,0.33724132,98419.0,98418.0,0.22500138]
[1736061444747,0.33724132,98419.0,98418.0,0.23100138]
[1736061445092,0.33724132,98419.0,98418.0,0.02778738]
[1736061445299,0.33724132,98419.0,98418.0,0.00626232]
[1736061445902,0.33724132,98419.0,98418.0,0.00426232]
[1736061446128,0.33724132,98419.0,98418.0,0.00026232]
[1736061446327,0.33724132,98419.0,98418.0,0.00426232]
[1736061450192,0.33724132,98419.0,98418.0,0.00126232]
[1736061450395,0.33724132,98419.0,98418.0,0.00334772]
[1736061450600,0.33724132,98419.0,98418.0,0.00234772]
[1736061451014,0.33724132,98419.0,98418.0,0.00334772]
[1736061452216,0.33724132,98419.0,98418.0,0.00034772]
[1736061452548,0.33724132,98419.0,98418.0,0.00134772]
[1736061452876,0.33724132,98419.0,98418.0,0.00334772]
[1736061454381,0.33724132,98419.0,98418.0,0.00234772]
[1736061454771,0.33724132,98419.0,98418.0,0.00334772]
[1736061455494,0.33724132,98419.0,98418.0,0.00134772]
[1736061455698,0.33724132,98419.0,98418.0,0.00334772]
[1736061462007,0.33724132,98419.0,98418.0,0.00034772]
[1736061462445,0.33724132,98419.0,98418.0,0.00334772]
[1736061463203,0.33724132,98419.0,98418.0,0.00034772]
[1736061463515,0.33724132,98419.0,98418.0,0.00434772]
[1736061463931,0.33724132,98419.0,98418.0,0.00334772]
[1736061464297,0.33724132,98419.0,98418.0,0.00434772]
[1736061471281,0.33724132,98419.0,98418.0,0.00334772]
[1736061471639,0.56580973,98419.0,98418.0,0.00334772]
[1736061472165,0.56580973,98419.0,98418.0,0.00034772]
[1736061472499,0.56580973,98419.0,98418.0,0.00134772]
[1736061472928,0.33724132,98419.0,98418.0,0.00134772]
[1736061474569,0.33724132,98419.0,98418.0,0.10533404]
[1736061475012,0.33724132,98419.0,98418.0,0.12685763]
[1736061475395,0.33724132,98419.0,98418.0,0.12585763]
[1736061475587,0.33724132,98419.0,98418.0,0.12785763]
[1736061476176,0.13716162,98419.0,98418.0,0.13185763]
[1736061476798,0.13716162,98419.0,98418.0,0.13085763]
[1736061477001,0.13716162,98419.0,98418.0,0.12685763]
[1736061477227,0.13716162,98419.0,98418.0,0.12985763]
[1736061477629,0.13716162,98420.0,98419.0,0.203212]
[1736061477804,0.13716162,98420.0,98419.0,0.30719832]
[1736061478127,0.13716162,98420.0,98419.0,0.32872076]
[1736061480093,0.13716162,98420.0,98419.0,0.33072076]
[1736061480323,0.13716162,98420.0,98419.0,0.33172076]
[1736061482638,0.13716162,98421.0,98419.0,0.33172076]
[1736061483464,0.13716162,98421.0,98419.0,0.33072076]
[1736061483861,0.13716162,98421.0,98419.0,0.32872076]
[1736061484297,0.13716162,98421.0,98419.0,0.32972076]
[1736061484735,0.13716162,98421.0,98419.0,0.33072076]
[1736061485361,0.13716162,98421.0,98419.0,0.32972076]
[1736061485771,0.13716162,98421.0,98419.0,0.33172076]
[1736061486178,0.13716162,98421.0,98419.0,0.33180616]
[1736061486824,0.13716162,98422.0,98419.0,0.33180616]
[1736061487622,0.13716162,98422.0,98419.0,0.33080616]
[1736061488426,0.13716162,98422.0,98419.0,0.32880616]
[1736061488757,0.13716162,98422.0,98419.0,0.32980616]
[1736061490919,0.09138243,98420.0,98419.0,0.32980616]
[1736061491846,0.09138243,98421.0,98419.0,0.32980616]
[1736061492051,0.09138243,98421.0,98419.0,0.32880616]
[1736061492289,0.09138243,98421.0,98419.0,0.33180616]
[1736061492894,0.09138243,98421.0,98419.0,0.33280616]
[1736061493093,0.09138243,98421.0,98419.0,0.32980616]
[1736061493318,0.09138243,98421.0,98419.0,0.33180616]
[1736061493632,0.09138243,98421.0,98419.0,0.33080616]
[1736061494003,0.09138243,98421.0,98419.0,0.33280616]
[1736061494209,0.09138243,98421.0,98420.0,0.5]
[1736061494415,0.09138243,98422.0,98421.0,0.203208]
[1736061494890,0.09138243,98422.0,98421.0,0.22481268]
[1736061495730,0.09138243,98422.0,98421.0,0.22781268]
[1736061496339,0.09138243,98422.0,98421.0,0.22881268]
[1736061496983,0.09138243,98423.0,98421.0,0.22881268]
[1736061497909,0.09138243,98423.0,98421.0,0.22481268]
[1736061498252,0.09138243,98423.0,98421.0,0.22781268]
[1736061499576,0.09138243,98424.0,98421.0,0.22781268]
[1736061499798,0.09138243,98424.0,98421.0,0.22881268]
[1736061500424,0.09138243,98424.0,98421.0,0.22781268]
[1736061500833,0.09138243,98424.0,98421.0,0.22881268]
[1736061501479,0.09138243,98424.0,98421.0,0.22581268]
[1736061502258,0.09138243,98424.0,98421.0,0.22781268]
[1736061507883,0.13716162,98426.0,98421.0,0.22781268]
[1736061508083,0.13716162,98424.0,98421.0,0.22781268]
[1736061509523,0.33728169,98425.0,98421.0,0.22681268]
[1736061509524,0.13716162,98423.0,98421.0,0.22681268]
[1736061510674,0.13716162,98423.0,98421.0,0.22581268]
[1736061510957,0.13716162,98423.0,98421.0,0.22881268]
[1736061511333,0.13716162,98423.0,98421.0,0.22889808]
[1736061511915,0.13716162,98423.0,98421.0,0.22789808]
[1736061512299,0.13716162,98423.0,98421.0,0.22889808]
[1736061514810,0.13716162,98422.0,98421.0,0.22889808]
[1736061515583,0.13716162,98422.0,98421.0,0.22789808]
[1736061516022,0.13716162,98422.0,98421.0,0.22889808]
[1736061516196,0.13716162,98422.0,98421.0,0.22589808]
[1736061516417,0.13716162,98422.0,98421.0,0.22889808]
[1736061517233,0.18288216,98423.0,98421.0,0.22889808]
[1736061518106,0.18288216,98423.0,98421.0,0.22789808]
[1736061518467,0.18288216,98423.0,98421.0,0.22889808]
[1736061519377,0.18288216,98423.0,98421.0,0.22589808]
[1736061519584,0.18288216,98423.0,98421.0,0.22889808]
[1736061520140,0.52028164,98423.0,98421.0,0.22889808]
[1736061521442,0.18288216,98423.0,98421.0,0.22889808]
[1736061522747,0.18288216,98422.0,98421.0,0.22889808]
[1736061523885,0.18288216,98422.0,98421.0,0.22589808]
[1736061524254,0.18288216,98422.0,98421.0,0.22889808]
[1736061524705,0.18288216,98422.0,98421.0,0.22789808]
[1736061525192,0.18288216,98422.0,98421.0,0.22889808]
[1736061525368,0.18288216,98422.0,98421.0,0.72889808]
[1736061528738,0.52028164,98422.0,98421.0,0.72889808]
[1736061530096,0.18288216,98422.0,98421.0,0.72889808]
[1736061530961,0.52028164,98422.0,98421.0,0.72889808]
[1736061532363,0.18288216,98422.0,98421.0,0.72889808]
[1736061533569,0.33739948,98422.0,98421.0,0.72889808]
[1736061535090,0.33739948,98423.0,98421.0,0.72889808]
[1736061536042,0.18291854,98422.0,98421.0,0.72489808]
[1736061536191,0.18291854,98422.0,98421.0,0.72589808]
[1736061536396,0.18291854,98422.0,98421.0,0.72889808]
[1736061536927,0.18291854,98423.0,98421.0,0.72889808]
[1736061537124,0.18291854,98423.0,98421.0,0.72489808]
[1736061538374,0.52031802,98423.0,98421.0,0.72489808]
[1736061538566,0.52031802,98423.0,98421.0,0.72789808]
[1736061539069,0.52031802,98423.0,98421.0,0.73189808]
[1736061539426,0.18291854,98423.0,98421.0,0.73189808]
[1736061539630,0.18291854,98423.0,98421.0,0.73089808]
[1736061539830,0.18291854,98423.0,98421.0,0.73189808]
[1736061540622,0.18291854,98422.0,98421.0,0.73189808]
[1736061541559,0.18291854,98422.0,98421.0,0.72589808]
[1736061541773,0.18291854,98423.0,98421.0,0.72889808]
[1736061541977,0.18291854,98423.0,98421.0,0.72789808]
[1736061542489,0.18291854,98423.0,98421.0,0.72889808]
[1736061542695,0.18291854,98422.0,98421.0,0.72589808]
[1736061542915,0.18291854,98422.0,98421.0,0.72789808]
[1736061543113,0.18291854,98422.0,98421.0,0.72889808]
[1736061544230,0.18291854,98422.0,98421.0,0.72789808]
[1736061544608,0.18291854,98422.0,98421.0,0.52169008]
[1736061544812,0.18291854,98422.0,98421.0,0.52469008]
[1736061545218,0.52031802,98423.0,98421.0,0.52469008]
[1736061545475,0.52031802,98423.0,98421.0,0.52569008]
[1736061545659,0.52031802,98423.0,98421.0,0.52269008]
[1736061546003,0.52031802,98423.0,98421.0,0.52169008]
[1736061546210,0.52031802,98423.0,98421.0,0.52369008]
[1736061546417,0.52031802,98423.0,98421.0,0.52169008]
[1736061546803,0.33739948,98422.0,98421.0,0.52169008]
[1736061547235,0.33739948,98422.0,98421.0,0.02169008]
[1736061547810,0.33739948,98422.0,98421.0,0.02269008]
[1736061548019,0.33739948,98422.0,98421.0,0.02169008]
[1736061548421,0.33739948,98422.0,98421.0,0.02469008]
[1736061548799,0.33739948,98422.0,98421.0,0.02569008]
[1736061549371,0.33739948,98422.0,98421.0,0.02469008]
[1736061549737,0.33739948,98422.0,98421.0,0.02269008]
[1736061550119,0.33739948,98422.0,98421.0,0.02169008]
[1736061550924,0.33739948,98422.0,98421.0,0.02269008]
[1736061551057,0.33739948,98422.0,98421.0,0.02469008]
[1736061551707,0.33739948,98422.0,98421.0,0.02669008]
[1736061551883,0.46819948,98422.0,98421.0,0.02669008]
[1736061552434,0.46819948,98422.0,98421.0,0.02569008]
[1736061552770,0.46819948,98422.0,98421.0,0.02269008]
[1736061553348,0.46819948,98422.0,98421.0,0.02169008]
[1736061554289,0.46819948,98422.0,98421.0,0.02269008]
[1736061555184,0.48723328,98422.0,98421.0,0.02269008]
[1736061555526,0.48723328,98422.0,98421.0,0.0010854]
[1736061557272,0.48723328,98422.0,98421.0,8.54e-05]
[1736061557625,0.48823328,98422.0,98421.0,8.54e-05]
[1736061558271,0.49023328,98422.0,98421.0,8.54e-05]
[1736061558460,0.48923328,98422.0,98421.0,8.54e-05]
[1736061558758,0.49023328,98422.0,98421.0,8.54e-05]
[1736061559168,0.48923328,98422.0,98421.0,8.54e-05]
[1736061559679,0.48823328,98422.0,98421.0,8.54e-05]
[1736061561042,0.49023328,98422.0,98421.0,8.54e-05]
[1736061561270,0.48723328,98422.0,98421.0,8.54e-05]
[1736061561679,0.48823328,98422.0,98421.0,8.54e-05]
[1736061562175,0.49023328,98422.0,98421.0,8.54e-05]
[1736061562376,0.48823328,98422.0,98421.0,8.54e-05]
[1736061562585,0.46919948,98422.0,98421.0,8.54e-05]
[1736061563881,0.1318,98422.0,98421.0,8.54e-05]
[1736061564093,0.1318,98422.0,98421.0,0.02221312]
[1736061564503,0.1338,98422.0,98421.0,0.02221312]
[1736061564914,0.1318,98422.0,98421.0,0.02221312]
[1736061565287,0.1338,98422.0,98421.0,0.02221312]
[1736061565541,0.0839,98422.0,98421.0,0.02221312]
[1736061565764,0.003,98422.0,98421.0,0.02221312]
[1736061574011,0.002,98422.0,98421.0,0.02221312]
[1736061574209,0.2001708,98427.0,98422.0,0.203206]
[1736061574617,0.2001708,98427.0,98424.0,0.203202]
[1736061574972,0.2001708,98427.0,98425.0,0.02212139]
[1736061577260,0.2011708,98427.0,98425.0,0.02212139]
[1736061577858,0.2011708,98427.0,98422.0,0.203206]
[1736061578100,0.2011708,98427.0,98426.0,0.02212023]
[1736061578302,0.2011708,98427.0,98422.0,0.203206]
[1736061578479,0.2011708,98427.0,98426.0,0.02212023]
[1736061578679,0.2011708,98427.0,98422.0,0.203206]
[1736061578882,0.2011708,98427.0,98426.0,0.02212023]
[1736061579404,0.2011708,98427.0,98422.0,0.203206]
[1736061579546,0.2011708,98427.0,98426.0,0.02212023]
[1736061579750,0.2011708,98427.0,98422.0,0.203206]
[1736061579954,0.2011708,98427.0,98423.0,0.0221237]
[1736061580206,0.2001708,98427.0,98423.0,0.0221237]
[1736061580774,0.2011708,98427.0,98423.0,0.0221237]
[1736061581526,0.22839856,98424.0,98423.0,0.0221237]
[1736061582770,0.22839856,98424.0,98421.0,8.54e-05]
[1736061582954,0.22839856,98424.0,98423.0,0.02212061]
[1736061583193,0.22839856,98424.0,98423.0,0.001]
[1736061583371,0.22839856,98424.0,98423.0,0.02312061]
[1736061583695,0.22839856,98424.0,98423.0,0.003]
[1736061583899,0.22839856,98424.0,98423.0,0.02512061]
[1736061584233,0.22839856,98424.0,98423.0,0.02212061]
[1736061584435,0.22839856,98424.0,98423.0,0.02512061]
[1736061585623,0.33724476,98425.0,98423.0,0.02512061]
[1736061586142,0.33724476,98425.0,98423.0,0.02312061]
[1736061586482,0.33724476,98425.0,98423.0,0.02212061]
[1736061586824,0.33724476,98424.0,98423.0,0.02312061]
[1736061587228,0.33724476,98424.0,98423.0,0.02612061]
[1736061587433,0.33724476,98424.0,98423.0,0.02312061]
[1736061587601,0.33724476,98424.0,98423.0,0.02212061]
[1736061587803,0.33724476,98424.0,98423.0,0.02412061]
[1736061588018,0.33724476,98424.0,98423.0,0.02212061]
[1736061589190,0.33724476,98424.0,98423.0,0.02312061]
[1736061589400,0.33724476,98424.0,98423.0,0.02212061]
[1736061589609,0.33724476,98424.0,98423.0,0.02512061]
[1736061589789,0.33724476,98424.0,98423.0,0.02612061]
[1736061591368,0.33724476,98424.0,98423.0,0.004]
[1736061592729,0.41824476,98424.0,98423.0,0.004]
[1736061593314,0.41824476,98424.0,98421.0,8.54e-05]
[1736061593723,0.41824476,98424.0,98423.0,0.003]
[1736061593923,0.41824476,98424.0,98423.0,8.54e-05]
[1736061594285,0.41824476,98424.0,98423.0,0.0010854]
[1736061594937,0.41924476,98424.0,98423.0,0.0010854]
[1736061596121,0.41824476,98424.0,98423.0,8.54e-05]
[1736061596553,0.42124476,98424.0,98423.0,8.54e-05]
[1736061597231,0.42524476,98424.0,98423.0,8.54e-05]
[1736061597381,0.42624476,98424.0,98423.0,8.54e-05]
[1736061597587,0.41924476,98424.0,98423.0,8.54e-05]
[1736061598429,0.42224476,98424.0,98423.0,8.54e-05]
[1736061598724,0.42124476,98424.0,98423.0,8.54e-05]
[1736061598979,0.42224476,98424.0,98423.0,8.54e-05]
[1736061599764,0.41924476,98424.0,98423.0,8.54e-05]
[1736061599981,0.42324476,98424.0,98423.0,8.54e-05]
[1736061600324,0.41924476,98424.0,98423.0,8.54e-05]
[1736061600796,0.69643947,98424.0,98423.0,8.54e-05]
[1736061602853,0.42224476,98424.0,98423.0,8.54e-05]